[Event "FIDE Grand Swiss 2023"]
[Site "Villa Marina, Douglas, Isle of Man"]
[Date "2023.11.01"]
[Round "7.16"]
[White "L'ami, Erwin"]
[Black "Vitiugov, Nikita"]
[Result "0-1"]
[WhiteElo "2627"]
[BlackElo "2711"]
[EventDate "2023.10.25"]
[ECO "D56"]
[PlyCount "122"]
[BlackFideId "4152956"]
[TimeControl "40/100 + 20/50 + 15 + 30s/move"]
[WhiteFideId "1007998"]

1.d4 {[%clk 01:40:56][%emt 00:00:03]} 1...Nf6 {[%clk 01:40:42][%emt 00:00:19]} 
2.c4 {[%clk 01:41:17][%emt 00:00:09]} 2...e6 {[%clk 01:41:07][%emt 00:00:04]} 
3.Nf3 {[%clk 01:41:36][%emt 00:00:11]} 3...d5 {[%clk 01:41:06][%emt 00:00:31]} 
4.Nc3 {[%clk 01:41:54][%emt 00:00:12]} 4...Be7 {[%clk 01:40:30][%emt 00:01:06]} 
5.Bg5 {[%clk 01:39:08][%emt 00:03:15]} 5...h6 {[%clk 01:40:13][%emt 00:00:48]} 
6.Bh4 {[%clk 01:38:15][%emt 00:01:23]} 6...O-O {[%clk 01:39:53][%emt 00:00:50]} 
7.e3 {[%clk 01:38:14][%emt 00:00:31]} 7...Nbd7 {[%clk 01:39:50][%emt 00:00:34]} 
8.Rc1 {[%clk 01:34:51][%emt 00:03:52]} 8...c5 {[%clk 01:39:21][%emt 00:01:00]} 
9.cxd5 {[%clk 01:30:24][%emt 00:04:56]} 9...Nxd5 {[%clk 01:39:17][%emt
00:00:34]} 10.Bxe7 {[%clk 01:30:19][%emt 00:00:36]} 10...Nxe7 {[%clk
01:39:18][%emt 00:00:28]} 11.Bb5 {[%clk 01:30:39][%emt 00:00:10]} 11...cxd4 
{[%clk 01:36:00][%emt 00:03:48]} 12.Qxd4 {[%clk 01:28:31][%emt 00:02:38]} 
12...Nf6 {[%clk 01:20:52][%emt 00:15:39]} 13.O-O {[%clk 01:20:11][%emt
00:08:49]} 13...Qxd4 {[%clk 01:08:06][%emt 00:13:17]} 14.Nxd4 {[%clk
01:20:23][%emt 00:00:18]} 14...Rd8 {[%clk 01:07:58][%emt 00:00:38]} 15.Rfd1 
{[%clk 01:16:56][%emt 00:03:55]} 15...Bd7 {[%clk 01:07:12][%emt 00:01:18]} 
16.Be2 {[%clk 01:14:41][%emt 00:02:44]} 16...Rac8 {[%clk 01:01:01][%emt
00:06:42]} 17.Bf3 {[%clk 01:11:01][%emt 00:04:08]} 17...b6 {[%clk 00:58:49][%emt
00:02:43]} 18.Bb7 {[%clk 01:09:49][%emt 00:01:41]} 18...Rb8 {[%clk
00:48:19][%emt 00:11:01]} 19.Ba6 {[%clk 00:57:38][%emt 00:12:41]} 19...Nc6 
{[%clk 00:47:59][%emt 00:00:50]} 20.Kf1 {[%clk 00:41:44][%emt 00:16:23]} 
20...Kf8 {[%clk 00:44:20][%emt 00:04:11]} 21.a3 {[%clk 00:37:52][%emt 00:04:22]} 
21...Nxd4 {[%clk 00:39:32][%emt 00:05:18]} 22.Rxd4 {[%clk 00:38:11][%emt
00:00:09]} 22...Bc6 {[%clk 00:30:23][%emt 00:09:40]} 23.Rxd8+ {[%clk
00:31:58][%emt 00:06:43]} 23...Rxd8 {[%clk 00:30:50][%emt 00:00:04]} 24.f3 
{[%clk 00:32:07][%emt 00:00:20]} 24...Rd2 {[%clk 00:21:43][%emt 00:09:38]} 
25.b4 {[%clk 00:31:01][%emt 00:01:36]} 25...Ne8 {[%clk 00:20:19][%emt 00:01:54]} 
26.Be2 {[%clk 00:21:22][%emt 00:10:08]} 26...Bb7 {[%clk 00:19:13][%emt
00:01:37]} 27.Ke1 {[%clk 00:20:21][%emt 00:01:30]} 27...Rb2 {[%clk
00:17:09][%emt 00:02:35]} 28.Nd1 {[%clk 00:14:23][%emt 00:06:27]} 28...Ra2 
{[%clk 00:15:54][%emt 00:01:45]} 29.Rc3 {[%clk 00:14:23][%emt 00:00:30]} 
29...f5 {[%clk 00:14:16][%emt 00:02:09]} 30.h3 {[%clk 00:10:10][%emt 00:04:42]} 
30...Ke7 {[%clk 00:13:33][%emt 00:01:14]} 31.g4 {[%clk 00:07:44][%emt 00:02:56]} 
31...Kf6 {[%clk 00:09:26][%emt 00:04:37]} 32.b5 {[%clk 00:06:21][%emt 00:01:52]} 
32...g5 {[%clk 00:07:39][%emt 00:02:17]} 33.Rd3 {[%clk 00:03:51][%emt 00:03:00]} 
33...Ke7 {[%clk 00:05:45][%emt 00:02:25]} 34.Nc3 {[%clk 00:03:52][%emt
00:00:28]} 34...Ra1+ {[%clk 00:05:57][%emt 00:00:19]} 35.Kf2 {[%clk
00:04:08][%emt 00:00:14]} 35...Nf6 {[%clk 00:05:30][%emt 00:00:57]} 36.a4 
{[%clk 00:03:18][%emt 00:01:20]} 36...Rc1 {[%clk 00:02:38][%emt 00:03:22]} 
37.Bd1 {[%clk 00:02:20][%emt 00:01:27]} 37...Nd7 {[%clk 00:00:59][%emt
00:02:09]} 38.Ne2 {[%clk 00:01:08][%emt 00:01:42]} 38...Ra1 {[%clk
00:00:54][%emt 00:00:36]} 39.Ng3 {[%clk 00:00:39][%emt 00:00:58]} 39...Ra2+ 
{[%clk 00:01:06][%emt 00:00:19]} 40.Kf1 {[%clk 00:00:33][%emt 00:00:35]} 
40...Ne5 {[%clk 00:00:35][%emt 00:01:02]} 41.Rc3 {[%clk 00:46:56][%emt
00:04:06]} 41...Kd8 {[%clk 00:26:55][%emt 00:24:10]} 42.Rc2 {[%clk
00:37:40][%emt 00:09:46]} 42...Ra1 {[%clk 00:23:33][%emt 00:03:53]} 43.Rd2+ 
{[%clk 00:37:49][%emt 00:00:20]} 43...Ke7 {[%clk 00:19:30][%emt 00:04:33]} 
44.Kf2 {[%clk 00:34:39][%emt 00:03:40]} 44...Nc4 {[%clk 00:15:19][%emt
00:04:41]} 45.Rd4 {[%clk 00:29:48][%emt 00:05:21]} 45...Ra2+ {[%clk
00:14:39][%emt 00:01:11]} 46.Ne2 {[%clk 00:26:37][%emt 00:03:40]} 46...Ne5 
{[%clk 00:14:29][%emt 00:00:40]} 47.f4 {[%clk 00:24:53][%emt 00:02:13]} 
47...Nf3 {[%clk 00:12:08][%emt 00:02:52]} 48.Rc4 {[%clk 00:23:49][%emt
00:01:34]} 48...Bd5 {[%clk 00:10:26][%emt 00:02:12]} 49.Rc2 {[%clk
00:22:17][%emt 00:02:02]} 49...Ra1 {[%clk 00:09:09][%emt 00:01:48]} 50.Rc1 
{[%clk 00:19:17][%emt 00:03:30]} 50...Rxc1 {[%clk 00:09:10][%emt 00:00:29]} 
51.Nxc1 {[%clk 00:19:41][%emt 00:00:05]} 51...Nd2 {[%clk 00:09:37][%emt
00:00:04]} 52.Ne2 {[%clk 00:13:23][%emt 00:06:47]} 52...Ne4+ {[%clk
00:08:16][%emt 00:01:51]} 53.Kg1 {[%clk 00:13:00][%emt 00:00:53]} 53...fxg4 
{[%clk 00:04:54][%emt 00:03:52]} 54.hxg4 {[%clk 00:13:16][%emt 00:00:13]} 
54...Kd6 {[%clk 00:05:05][%emt 00:00:20]} 55.Nd4 {[%clk 00:09:36][%emt
00:04:10]} 55...Kc5 {[%clk 00:04:50][%emt 00:00:46]} 56.f5 {[%clk 00:07:06][%emt
00:02:59]} 56...e5 {[%clk 00:03:11][%emt 00:02:09]} 57.Ne2 {[%clk 00:03:22][%emt
00:04:13]} 57...Kc4 {[%clk 00:03:19][%emt 00:00:24]} 58.Bc2 {[%clk
00:00:56][%emt 00:02:56]} 58...Nf6 {[%clk 00:03:29][%emt 00:00:19]} 59.e4 
{[%clk 00:00:58][%emt 00:00:28]} 59...Bxe4 {[%clk 00:02:51][%emt 00:01:08]} 
60.Bxe4 {[%clk 00:00:45][%emt 00:00:43]} 60...Nxe4 {[%clk 00:03:18][%emt
00:00:03]} 61.Kg2 {[%clk 00:15:24][%emt 00:00:50]} 61...Nf6 {[%clk
00:18:17][%emt 00:00:32]} 0-1

[Event "FIDE Grand Swiss 2023"]
[Site "Villa Marina, Douglas, Isle of Man"]
[Date "2023.11.01"]
[Round "7.17"]
[White "Maghsoodloo, Parham"]
[Black "Aravindh, Chithambaram Vr."]
[Result "1-0"]
[WhiteElo "2707"]
[BlackElo "2649"]
[EventDate "2023.10.25"]
[ECO "D07"]
[PlyCount "113"]
[BlackFideId "5072786"]
[TimeControl "40/100 + 20/50 + 15 + 30s/move"]
[WhiteFideId "12539929"]

1.d4 {[%clk 01:40:58][%emt 00:00:02]} 1...d5 {[%clk 01:40:46][%emt 00:00:14]} 
2.c4 {[%clk 01:41:23][%emt 00:00:05]} 2...Nc6 {[%clk 01:41:03][%emt 00:00:13]} 
3.Nf3 {[%clk 01:37:43][%emt 00:04:10]} 3...Bg4 {[%clk 01:41:22][%emt 00:00:11]} 
4.cxd5 {[%clk 01:32:09][%emt 00:06:05]} 4...Bxf3 {[%clk 01:41:19][%emt
00:00:32]} 5.gxf3 {[%clk 01:31:26][%emt 00:01:14]} 5...Qxd5 {[%clk
01:41:40][%emt 00:00:08]} 6.e3 {[%clk 01:31:53][%emt 00:00:03]} 6...e5 {[%clk
01:42:00][%emt 00:00:10]} 7.Nc3 {[%clk 01:32:18][%emt 00:00:05]} 7...Bb4 {[%clk
01:42:23][%emt 00:00:07]} 8.Bd2 {[%clk 01:32:18][%emt 00:00:30]} 8...Bxc3 
{[%clk 01:42:34][%emt 00:00:19]} 9.bxc3 {[%clk 01:32:43][%emt 00:00:06]} 
9...Qd6 {[%clk 01:42:49][%emt 00:00:14]} 10.Rg1 {[%clk 01:26:02][%emt 00:07:11]} 
10...O-O-O {[%clk 01:42:42][%emt 00:00:37]} 11.Rb1 {[%clk 01:22:07][%emt
00:04:25]} 11...Kb8 {[%clk 01:32:41][%emt 00:10:31]} 12.Qb3 {[%clk
01:10:14][%emt 00:12:23]} 12...b6 {[%clk 01:32:43][%emt 00:00:28]} 13.d5 {[%clk
01:10:36][%emt 00:00:09]} 13...Na5 {[%clk 01:21:54][%emt 00:11:19]} 14.Qb4 
{[%clk 00:58:13][%emt 00:12:53]} 14...Qxd5 {[%clk 01:21:10][%emt 00:01:14]} 
15.c4 {[%clk 00:58:25][%emt 00:00:18]} 15...Qb7 {[%clk 01:19:01][%emt 00:02:39]} 
16.Qa4 {[%clk 00:51:27][%emt 00:07:28]} 16...Nc6 {[%clk 01:18:33][%emt
00:00:57]} 17.Rxg7 {[%clk 00:49:47][%emt 00:02:11]} 17...Nge7 {[%clk
01:18:00][%emt 00:01:03]} 18.c5 {[%clk 00:43:25][%emt 00:06:52]} 18...Qc8 
{[%clk 01:15:33][%emt 00:02:56]} 19.Bc3 {[%clk 00:36:16][%emt 00:07:39]} 
19...Rhg8 {[%clk 00:53:43][%emt 00:22:20]} 20.Rg3 {[%clk 00:32:12][%emt
00:04:34]} 20...f5 {[%clk 00:49:40][%emt 00:04:33]} 21.Ba6 {[%clk 00:17:04][%emt
00:15:38]} 21...Qd7 {[%clk 00:49:25][%emt 00:00:45]} 22.Rd1 {[%clk
00:16:48][%emt 00:00:46]} 22...Qe8 {[%clk 00:48:04][%emt 00:01:52]} 23.Rxd8+ 
{[%clk 00:11:52][%emt 00:05:26]} 23...Qxd8 {[%clk 00:47:57][%emt 00:00:36]} 
24.Bc4 {[%clk 00:11:29]} 24...Rg6 {[%clk 00:47:26][%emt 00:01:01]} 25.Rxg6 
{[%clk 00:09:21][%emt 00:02:38]} 25...hxg6 {[%clk 00:47:51][%emt 00:00:05]} 
26.h4 {[%clk 00:09:19][%emt 00:00:33]} 26...Nd5 {[%clk 00:45:08][%emt 00:03:13]} 
27.Qxc6 {[%clk 00:08:07][%emt 00:01:42]} 27...Nxc3 {[%clk 00:45:32][%emt
00:00:05]} 28.Kf1 {[%clk 00:08:33][%emt 00:00:04]} 28...e4 {[%clk 00:44:56][%emt
00:01:06]} 29.Qxg6 {[%clk 00:06:53][%emt 00:02:10]} 29...Qd1+ {[%clk
00:32:24][%emt 00:13:02]} 30.Kg2 {[%clk 00:07:13][%emt 00:00:10]} 30...exf3+ 
{[%clk 00:27:29][%emt 00:05:25]} 31.Kh2 {[%clk 00:07:38][%emt 00:00:05]} 
31...Qa4 {[%clk 00:27:11][%emt 00:00:49]} 32.c6 {[%clk 00:06:24][%emt 00:01:45]} 
32...a5 {[%clk 00:27:10][%emt 00:00:31]} 33.Qe6 {[%clk 00:01:52][%emt 00:05:02]} 
33...Ne4 {[%clk 00:26:35][%emt 00:01:05]} 34.Bb3 {[%clk 00:01:22][%emt
00:01:00]} 34...Qb4 {[%clk 00:26:27][%emt 00:00:37]} 35.Qe8+ {[%clk
00:00:58][%emt 00:00:55]} 35...Ka7 {[%clk 00:26:53][%emt 00:00:04]} 36.Qd7 
{[%clk 00:01:12][%emt 00:00:15]} 36...Nd6 {[%clk 00:23:06][%emt 00:04:17]} 
37.Qxc7+ {[%clk 00:01:35][%emt 00:00:07]} 37...Ka6 {[%clk 00:23:32][%emt
00:00:04]} 38.Qe7 {[%clk 00:00:49] [%emt 00:01:16]} 38...Qd2 {[%clk
00:21:52][%emt 00:02:11]} 39.Kg3 {[%clk 00:01:04][%emt 00:00:15]} 39...Qb4 
{[%clk 00:22:14] [%emt 00:00:07]} 40.Kh2 {[%clk 00:00:49][%emt 00:01:16]} 
40...Qe1 {[%clk 00:09:31][%emt 00:13:13]} 41.Kg3 {[%clk 00:01:05][%emt
00:00:15]} 41...Qb4 {[%clk 00:22:14][%emt 00:00:07]} 42.Qg7 {[%clk
00:40:54][%emt 00:10:42]} 42...f4+ {[%clk 00:57:03][%emt 00:00:09]} 43.Kxf3 
{[%clk 00:41:19][%emt 00:00:05]} 43...fxe3 {[%clk 00:37:00][%emt 00:20:33]} 
44.fxe3 {[%clk 00:41:16][%emt 00:00:33]} 44...Qxh4 {[%clk 00:37:21][%emt
00:00:09]} 45.Qd7 {[%clk 00:31:45][%emt 00:10:00]} 45...Qe4+ {[%clk
00:27:34][%emt 00:10:16]} 46.Kf2 {[%clk 00:29:16][%emt 00:03:01]} 46...Qh4+ 
{[%clk 00:25:04][%emt 00:03:00]} 47.Ke2 {[%clk 00:27:02][%emt 00:02:45]} 
47...Qh5+ {[%clk 00:20:47][%emt 00:04:46]} 48.Kd2 {[%clk 00:19:38][%emt
00:07:54]} 48...Ne4+ {[%clk 00:06:11][%emt 00:15:06]} 49.Kc1 {[%clk
00:19:36][%emt 00:00:32]} 49...Qh1+ {[%clk 00:06:36][%emt 00:00:05]} 50.Bd1 
{[%clk 00:12:15][%emt 00:07:51]} 50...Nc5 {[%clk 00:07:00][%emt 00:00:06]} 
51.Qc8+ {[%clk 00:10:58][%emt 00:01:47]} 51...Kb5 {[%clk 00:07:26][%emt
00:00:04]} 52.c7 {[%clk 00:11:23][%emt 00:00:06]} 52...Qc6 {[%clk 00:05:59][%emt
00:01:57]} 53.Be2+ {[%clk 00:06:29][%emt 00:05:23]} 53...Kb4 {[%clk
00:06:23][%emt 00:00:06]} 54.Qg4+ {[%clk 00:06:44][%emt 00:00:16]} 54...Ka3 
{[%clk 00:05:30][%emt 00:01:23]} 55.c8=Q {[%clk 00:05:09][%emt 00:02:05]} 
55...Nb3+ {[%clk 00:05:55][%emt 00:00:05]} 56.Kb1 {[%clk 00:03:46][%emt
00:01:53]} 56...Qf6 {[%clk 00:06:18][%emt 00:00:06]} 57.Qa4+ {[%clk
00:04:12][%emt 00:00:05]} 1-0

[Event "FIDE Grand Swiss 2023"]
[Site "Villa Marina, Douglas, Isle of Man"]
[Date "2023.11.01"]
[Round "7.18"]
[White "Suleymanli, Aydin"]
[Black "Sevian, Samuel"]
[Result "0-1"]
[WhiteElo "2588"]
[BlackElo "2698"]
[EventDate "2023.10.25"]
[ECO "C84"]
[PlyCount "142"]
[BlackFideId "2040506"]
[TimeControl "40/100 + 20/50 + 15 + 30s/move"]
[WhiteFideId "13413937"]

1.e4 {[%clk 01:40:59]} 1...e5 {[%clk 01:37:27][%emt 00:03:32]} 2.Nf3 {[%clk
01:41:15][%emt 00:00:14]} 2...Nc6 {[%clk 01:37:53][%emt 00:00:05]} 3.Bb5 {[%clk
01:41:40][%emt 00:00:05]} 3...a6 {[%clk 01:37:52][%emt 00:00:31]} 4.Ba4 {[%clk
01:42:05][%emt 00:00:05]} 4...Nf6 {[%clk 01:38:18][%emt 00:00:04]} 5.O-O {[%clk
01:42:31][%emt 00:00:04]} 5...Be7 {[%clk 01:38:22][%emt 00:00:26]} 6.d3 {[%clk
01:42:47][%emt 00:00:14]} 6...b5 {[%clk 01:38:11][%emt 00:00:41]} 7.Bb3 {[%clk
01:43:13][%emt 00:00:04]} 7...d6 {[%clk 01:38:26][%emt 00:00:15]} 8.c3 {[%clk
01:43:36][%emt 00:00:07]} 8...O-O {[%clk 01:37:37][%emt 00:01:19]} 9.h3 {[%clk
01:43:48][%emt 00:00:18]} 9...Bb7 {[%clk 01:36:36][%emt 00:01:30]} 10.a4 {[%clk
01:44:13][%emt 00:00:05]} 10...Nb8 {[%clk 01:33:50][%emt 00:03:17]} 11.axb5 
{[%clk 01:40:05][%emt 00:04:39]} 11...axb5 {[%clk 01:33:13][%emt 00:01:06]} 
12.Rxa8 {[%clk 01:40:30][%emt 00:00:05]} 12...Bxa8 {[%clk 01:33:40][%emt
00:00:03]} 13.Na3 {[%clk 01:40:54][%emt 00:00:06]} 13...Qd7 {[%clk
01:11:52][%emt 00:22:17]} 14.Nc2 {[%clk 01:39:05][%emt 00:02:19]} 14...Na6 
{[%clk 00:53:25][%emt 00:18:57]} 15.Ne3 {[%clk 01:38:47][%emt 00:00:49]} 
15...Nc5 {[%clk 00:52:10][%emt 00:01:45]} 16.Bc2 {[%clk 01:38:14][%emt
00:01:02]} 16...Re8 {[%clk 00:51:12][%emt 00:01:28]} 17.Nf5 {[%clk
01:36:07][%emt 00:02:37]} 17...Ne6 {[%clk 00:49:30][%emt 00:02:13]} 18.Nxe7+ 
{[%clk 01:32:16][%emt 00:04:22]} 18...Qxe7 {[%clk 00:48:02][%emt 00:01:58]} 
19.Re1 {[%clk 01:29:53][%emt 00:02:52]} 19...c5 {[%clk 00:41:57][%emt 00:06:35]} 
20.d4 {[%clk 01:24:44][%emt 00:05:38]} 20...exd4 {[%clk 00:38:09][%emt
00:04:18]} 21.cxd4 {[%clk 01:24:31][%emt 00:00:44]} 21...Nxd4 {[%clk
00:37:21][%emt 00:01:18]} 22.Nxd4 {[%clk 01:24:54][%emt 00:00:07]} 22...cxd4 
{[%clk 00:37:46][%emt 00:00:04]} 23.Qxd4 {[%clk 01:24:57][%emt 00:00:28]} 
23...Qc7 {[%clk 00:38:09][%emt 00:00:07]} 24.Bd3 {[%clk 01:23:33][%emt
00:01:54]} 24...Bxe4 {[%clk 00:38:16][%emt 00:00:23]} 25.Bxe4 {[%clk
01:12:59][%emt 00:11:03]} 25...Rxe4 {[%clk 00:29:30][%emt 00:09:17]} 26.Rxe4 
{[%clk 01:13:24][%emt 00:00:06]} 26...Qxc1+ {[%clk 00:29:52][%emt 00:00:07]} 
27.Kh2 {[%clk 01:13:52][%emt 00:00:02]} 27...Nxe4 {[%clk 00:30:20][%emt
00:00:02]} 28.Qxe4 {[%clk 01:14:17][%emt 00:00:05]} 28...Qc8 {[%clk
00:28:30][%emt 00:02:20]} 29.Qd5 {[%clk 01:14:40][%emt 00:00:07]} 29...Qa6 
{[%clk 00:28:25][%emt 00:00:36]} 30.b4 {[%clk 01:13:38][%emt 00:01:32]} 
30...Kf8 {[%clk 00:27:04][%emt 00:01:51]} 31.f3 {[%clk 01:10:48][%emt 00:03:19]} 
31...g6 {[%clk 00:16:59][%emt 00:10:35]} 32.Kg3 {[%clk 01:09:21][%emt 00:01:57]} 
32...Qb6 {[%clk 00:15:30][%emt 00:02:00]} 33.h4 {[%clk 01:07:50][%emt 00:02:00]} 
33...h5 {[%clk 00:14:03] [%emt 00:01:57]} 34.Kh3 {[%clk 01:03:38] [%emt
00:04:41]} 34...Kg7 {[%clk 00:13:43] [%emt 00:00:51]} 35.Kg3 {[%clk 01:01:34]
[%emt 00:02:33]} 35...Kf8 {[%clk 00:14:03][%emt 00:01:57]} 36.Kh3 {[%clk
01:03:38][%emt 00:04:41]} 36...Kg8 {[%clk 00:12:11][%emt 00:00:43]} 37.Qa8+ 
{[%clk 01:00:22][%emt 00:01:36]} 37...Kg7 {[%clk 00:12:32][%emt 00:00:10]} 
38.Qd5 {[%clk 01:00:04][%emt 00:00:48]} 38...Kf8 {[%clk 00:11:21][%emt
00:01:41]} 39.Qa8+ {[%clk 00:45:36][%emt 00:14:58]} 39...Ke7 {[%clk
00:11:40][%emt 00:00:11]} 40.Qe4+ {[%clk 00:45:59][%emt 00:00:06]} 40...Kf6 
{[%clk 00:10:52][%emt 00:01:19]} 41.Qd5 {[%clk 00:41:29][%emt 00:05:00]} 
41...Kg7 {[%clk 00:13:43][%emt 00:00:51]} 42.Kg3 {[%clk 01:01:34][%emt
00:02:33]} 42...Qb8 {[%clk 00:36:23][%emt 00:01:09]} 43.Qd4+ {[%clk
01:28:09][%emt 00:01:14]} 43...Kg8 {[%clk 00:35:59][%emt 00:00:55]} 44.Qd5 
{[%clk 01:28:05][%emt 00:00:35]} 44...Kf8 {[%clk 00:35:52][%emt 00:00:37]} 
45.Qc6 {[%clk 00:56:29][%emt 00:32:06]} 45...d5+ {[%clk 00:24:26][%emt
00:11:56]} 46.Kh3 {[%clk 00:49:40][%emt 00:07:18]} 46...Qd8 {[%clk
00:24:12][%emt 00:00:45]} 47.Qxb5 {[%clk 00:45:21][%emt 00:04:48]} 47...d4 
{[%clk 00:24:19][%emt 00:00:24]} 48.Qd3 {[%clk 00:42:54][%emt 00:02:57]} 
48...Qc8+ {[%clk 00:24:13][%emt 00:00:36]} 49.Kg3 {[%clk 00:39:52][%emt
00:03:32]} 49...Qb8+ {[%clk 00:14:30][%emt 00:10:13]} 50.Kf2 {[%clk
00:38:58][%emt 00:01:23]} 50...Qxb4 {[%clk 00:14:58][%emt 00:00:03]} 51.Qe4 
{[%clk 00:37:27][%emt 00:02:00]} 51...Qb2+ {[%clk 00:11:16][%emt 00:04:13]} 
52.Qe2 {[%clk 00:36:05] [%emt 00:01:52]} 52...Qb6 {[%clk 00:10:31] [%emt
00:01:15]} 53.Qd3 {[%clk 00:31:04] [%emt 00:05:30]} 53...Qb2+ {[%clk
00:10:33][%emt 00:00:29]} 54.Qe2 {[%clk 00:36:05][%emt 00:01:52]} 54...Qb6 
{[%clk 00:10:31][%emt 00:01:15]} 55.Qd3 {[%clk 00:31:04][%emt 00:05:30]} 
55...Kg7 {[%clk 00:10:08][%emt 00:01:22]} 56.Ke2 {[%clk 00:28:58][%emt
00:03:23]} 56...Qb2+ {[%clk 00:08:22][%emt 00:02:17]} 57.Ke1 {[%clk 00:28:45]
[%emt 00:00:43]} 57...Qb4+ {[%clk 00:05:12][%emt 00:03:39]} 58.Kf2 {[%clk
00:28:48][%emt 00:00:28]} 58...Qb2+ {[%clk 00:02:12][%emt 00:03:31]} 59.Ke1 
{[%clk 00:28:45][%emt 00:00:43]} 59...Qc1+ {[%clk 00:01:30][%emt 00:01:11]} 
60.Kf2 {[%clk 00:29:35][%emt 00:00:10]} 60...Qc5 {[%clk 00:01:50][%emt
00:00:12]} 61.Kf1 {[%clk 00:29:22][%emt 00:00:42]} 61...Kf6 {[%clk
00:01:16][%emt 00:01:05]} 62.Qa6+ {[%clk 00:28:24][%emt 00:01:27]} 62...Ke5 
{[%clk 00:00:54][%emt 00:00:50]} 63.Qe2+ {[%clk 00:27:37][%emt 00:01:20]} 
63...Kd6 {[%clk 00:01:17][%emt 00:00:07]} 64.g3 {[%clk 00:18:59][%emt 00:09:06]} 
64...Qa3 {[%clk 00:12:37][%emt 00:04:12]} 65.Kf2 {[%clk 00:33:36][%emt
00:00:53]} 65...d3 {[%clk 00:12:25][%emt 00:00:42]} 66.Qe8 {[%clk 00:32:54][%emt
00:01:12]} 66...Qb2+ {[%clk 00:11:31][%emt 00:01:24]} 67.Kf1 {[%clk
00:33:11][%emt 00:00:12]} 67...Qc1+ {[%clk 00:10:47][%emt 00:01:14]} 68.Kf2 
{[%clk 00:33:03][%emt 00:00:38]} 68...Qc2+ {[%clk 00:11:07][%emt 00:00:10]} 
69.Kf1 {[%clk 00:32:46][%emt 00:00:47]} 69...d2 {[%clk 00:06:58][%emt 00:04:40]} 
70.Qd8+ {[%clk 00:32:58] [%emt 00:00:18]} 70...Ke6 {[%clk 00:07:12] [%emt
00:00:15]} 71.Qe8+ {[%clk 00:33:07] [%emt 00:00:21]} 71...Kf6 {[%clk 00:06:23]} 0-1